fUST/lending_fUST_20241209
["ID","MTS","AMOUNT","RATE_DAILY","PERIOD"]
[344666365,1733711433003,-155.11896092,0.00029297,2]
[344666366,1733711433013,-162.480296,0.00029349,2]
[344666367,1733711433023,-400.0,0.00029754,2]
[344666368,1733711433033,-37.28207467,0.00029867,2]
[344666386,1733711438808,-119.00861493,0.00029867,2]
[344666388,1733711438817,-191.534,0.0003,2]
[344666389,1733711438827,-250.0,0.0003,2]
[344666390,1733711438836,-258.30410505,0.0003,2]
[344666391,1733711438846,-188.06371499,0.0003,30]
[344666392,1733711438855,-500.0,0.00030135,2]
[344666393,1733711438865,-500.0,0.00030135,2]
[344666394,1733711438874,-500.0,0.00030135,2]
[344666395,1733711438883,-525.74524428,0.00030135,2]
[344666396,1733711439039,-500.0,0.00030135,2]
[344666397,1733711439052,-238.43207132,0.00030135,2]
[344666398,1733711439062,-500.0,0.00030135,2]
[344666399,1733711439072,-339.60260902,0.00030135,2]
[344666400,1733711439082,-500.0,0.00030136,5]
[344666401,1733711439091,-500.0,0.00030136,5]
[344666402,1733711439102,-500.0,0.00030136,5]
[344666403,1733711439111,-500.0,0.00030136,5]
[344666404,1733711439122,-500.0,0.00030136,5]
[344666405,1733711439132,-500.0,0.00030136,5]
[344666406,1733711439142,-500.0,0.00030136,5]
[344666407,1733711439152,-500.0,0.00030136,5]
[344666408,1733711439163,-500.0,0.00030136,5]
[344666409,1733711439174,-517.10332854,0.00030136,5]
[344666410,1733711439187,-500.0,0.00030136,5]
[344666411,1733711439199,-638.12,0.00030136,5]
[344666412,1733711439208,-500.0,0.00030136,5]
[344666413,1733711439217,-500.0,0.00030136,5]
[344666414,1733711439227,-500.21,0.00030136,5]
[344666415,1733711439238,-609.32711502,0.00030136,5]
[344666416,1733711439248,-500.0,0.00030136,5]
[344666417,1733711439257,-500.0,0.00030136,5]
[344666418,1733711439266,-557.27616593,0.00030136,5]
[344666419,1733711439276,-500.0,0.00030136,5]
[344666420,1733711439286,-500.0,0.00030136,5]
[344666421,1733711439296,-500.0,0.00030136,5]
[344666422,1733711439305,-500.0,0.00030136,5]
[344666423,1733711439315,-212.99,0.00030136,5]
[344666424,1733711439324,-500.0,0.00030136,5]
[344666425,1733711439335,-268.69443346,0.00030136,2]
[344666426,1733711439345,-500.0,0.00030136,5]
[344666427,1733711439355,-542.28,0.00030136,5]
[344666428,1733711439366,-154.1464585,0.00030136,5]
[344666429,1733711439376,-500.0,0.00030136,5]
[344666430,1733711439386,-500.0,0.00030136,5]
[344666431,1733711439395,-500.0,0.00030136,5]
[344666432,1733711439405,-500.0,0.00030136,5]
[344666433,1733711439415,-500.0,0.00030136,5]
[344666434,1733711439424,-500.0,0.00030136,5]
[344666435,1733711439438,-560.31306554,0.00030136,5]
[344666436,1733711439447,-500.0,0.00030136,5]
[344666437,1733711439457,-500.0,0.00030136,5]
[344666438,1733711439466,-500.0,0.00030136,5]
[344666439,1733711439475,-528.44,0.00030136,5]
[344666440,1733711439484,-500.0,0.00030136,5]
[344666441,1733711439494,-500.0,0.00030136,5]
[344666442,1733711439503,-500.0,0.00030136,5]
[344666443,1733711439512,-500.0,0.00030136,5]
[344666444,1733711439521,-500.0,0.00030136,5]
[344666445,1733711439530,-500.0,0.00030136,5]
[344666446,1733711439540,-500.0,0.00030136,5]
[344666447,1733711439549,-500.0,0.00030136,5]
[344666448,1733711439558,-500.0,0.00030136,5]
[344666449,1733711439568,-500.0,0.00030136,5]
[344666450,1733711439577,-500.0,0.00030136,5]
[344666451,1733711439587,-500.0,0.00030136,5]
[344666452,1733711439597,-506.09661759,0.00030136,5]
[344666453,1733711439606,-500.0,0.00030136,5]
[344666454,1733711439621,-500.0,0.00030136,5]
[344666455,1733711439635,-600.22,0.00030136,5]
[344666456,1733711439644,-617.92928474,0.00030136,5]
[344666457,1733711439653,-500.0,0.00030136,5]
[344666458,1733711439663,-500.0,0.00030136,5]
[344666459,1733711439672,-500.0,0.00030136,5]
[344666460,1733711439681,-500.0,0.00030136,5]
[344666461,1733711439693,-500.0,0.00030136,5]
[344666462,1733711439701,-500.0,0.00030136,5]
[344666463,1733711439711,-500.0,0.00030136,5]
[344666464,1733711439720,-501.49996616,0.00030136,5]
[344666465,1733711439729,-500.0,0.00030136,5]
[344666466,1733711439738,-558.01,0.00030136,5]
[344666467,1733711439748,-500.0,0.00030136,5]
[344666468,1733711439758,-500.0,0.00030136,5]
[344666469,1733711439767,-503.81289428,0.00030136,5]
[344666470,1733711439776,-500.0,0.00030136,5]
[344666471,1733711439785,-500.0,0.00030136,5]
[344666472,1733711439797,-500.0,0.00030136,5]
[344666473,1733711439807,-500.0,0.00030136,5]
[344666474,1733711439816,-509.46262329,0.00030136,5]
[344666475,1733711439826,-179.52547515,0.00030136,5]
[344666476,1733711439836,-501.85024444,0.00030136,5]
[344666477,1733711439846,-500.0,0.00030136,5]
[344666478,1733711439855,-500.0,0.00030136,5]
[344666479,1733711439865,-500.0,0.00030136,5]
[344666480,1733711439875,-147.64544022,0.00030136,5]
[344666514,1733711444380,-328.76355483,0.00030136,5]
[344666515,1733711444392,-85.48787151,0.00030136,5]
[344666516,1733711444401,-231.85412853,0.00030136,5]
[344666529,1733711446744,-268.14587147,0.00030136,5]
[344666530,1733711446754,-48.32881697,0.00030136,5]
[344666531,1733711446902,-480.86475012,0.00030136,5]
[344666532,1733711446912,-500.0,0.00030136,5]
[344666533,1733711446923,-500.0,0.00030136,5]
[344666534,1733711446933,-500.0,0.00030136,5]
[344666535,1733711446948,-505.63123839,0.00030136,5]
[344666536,1733711446957,-500.0,0.00030136,5]
[344666537,1733711446968,-500.0,0.00030136,5]
[344666538,1733711446978,-500.0,0.00030136,5]
[344666539,1733711446987,-500.0,0.00030136,5]
[344666540,1733711446996,-500.0,0.00030136,5]
[344666541,1733711447005,-508.78553581,0.00030136,5]
[344666542,1733711447015,-534.9907145,0.00030136,5]
[344666543,1733711447024,-560.33561388,0.00030136,5]
[344666544,1733711447033,-500.0,0.00030136,5]
[344666545,1733711447043,-649.86,0.00030136,5]
[344666546,1733711447052,-500.0,0.00030136,5]
[344666547,1733711447063,-500.0,0.00030136,120]
[344666548,1733711447073,-500.0,0.00030136,120]
[344666549,1733711447083,-501.91694481,0.00030136,5]
[344666550,1733711447092,-500.0,0.00030136,5]
[344666551,1733711447102,-605.11498965,0.00030136,5]
[344666552,1733711447112,-500.0,0.00030136,5]
[344666553,1733711447122,-500.0,0.00030136,5]
[344666554,1733711447131,-500.0,0.00030136,5]
[344666555,1733711447140,-159.04,0.00030136,5]
[344666556,1733711447150,-500.0,0.00030136,5]
[344666558,1733711447162,-489.24668796,0.00030136,5]
[344666559,1733711447172,-530.61729042,0.00030136,5]
[344666560,1733711447181,-500.0,0.00030136,5]
[344666561,1733711447194,-500.0,0.00030136,5]
[344666562,1733711447203,-517.96514633,0.00030136,5]
[344666563,1733711447214,-500.0,0.00030136,5]
[344666564,1733711447223,-500.0,0.00030136,5]
[344666565,1733711447233,-514.0441369,0.00030136,5]
[344666566,1733711447243,-500.0,0.00030136,5]
[344666567,1733711447254,-500.0,0.00030136,5]
[344666568,1733711447263,-500.0,0.00030136,5]
[344666569,1733711447273,-500.0,0.00030136,5]
[344666570,1733711447282,-513.45395919,0.00030136,5]
[344666571,1733711447292,-500.0,0.00030136,5]
[344666572,1733711447301,-500.0,0.00030136,5]
[344666573,1733711447310,-500.0,0.00030136,5]
[344666574,1733711447320,-500.0,0.00030136,5]
[344666575,1733711447330,-272.14201717,0.00030136,5]
[344666576,1733711447340,-500.0,0.00030136,5]
[344666577,1733711447350,-500.0,0.00030136,5]
[344666578,1733711447359,-402.91251861,0.00030136,5]
[344666579,1733711447369,-500.0,0.00030136,5]
[344666580,1733711447379,-500.0,0.00030136,5]
[344666581,1733711447389,-367.84971857,0.00030136,2]
[344666582,1733711447399,-502.95274968,0.00030136,5]
[344666583,1733711447409,-500.0,0.00030136,5]
[344666584,1733711447420,-619.88,0.00030136,5]
[344666585,1733711447429,-460.61459815,0.00030136,5]
[344666586,1733711447439,-500.0,0.00030136,5]
[344666587,1733711447449,-500.0,0.00030136,5]
[344666588,1733711447458,-500.0,0.00030136,5]
[344666589,1733711447468,-500.0,0.00030136,5]
[344666590,1733711447478,-419.92125709,0.00030136,5]
[344666591,1733711447487,-501.81857546,0.00030136,5]
[344666592,1733711447496,-500.0,0.00030136,5]
[344666593,1733711447505,-500.0,0.00030136,5]
[344666594,1733711447515,-500.0,0.00030136,5]
[344666595,1733711447524,-331.46506754,0.00030136,5]
[344666596,1733711447534,-246.97743413,0.00030136,5]
[344666597,1733711447543,-500.0,0.00030136,5]
[344666598,1733711447553,-500.0,0.00030136,5]
[344666599,1733711447563,-260.53697584,0.00030136,5]
[344666600,1733711447572,-539.94851433,0.00030136,5]
[344666601,1733711447581,-500.0,0.00030136,5]
[344666602,1733711447591,-503.34778926,0.00030136,5]
[344666603,1733711447601,-500.0,0.00030136,5]
[344666604,1733711447611,-618.73,0.00030136,5]
[344666605,1733711447621,-500.0,0.00030136,5]
[344666606,1733711447630,-500.0,0.00030136,5]
[344666607,1733711447639,-500.0,0.00030136,5]
[344666608,1733711447649,-500.0,0.00030136,5]
[344666609,1733711447658,-500.0,0.00030136,5]
[344666610,1733711447668,-500.0,0.00030136,5]
[344666611,1733711447678,-500.0,0.00030136,5]
[344666612,1733711447688,-500.0,0.00030136,5]
[344666613,1733711447697,-500.0,0.00030136,5]
[344666614,1733711447707,-500.0,0.00030136,5]
[344666615,1733711447716,-500.0,0.00030136,5]
[344666616,1733711447726,-500.0,0.00030136,5]
[344666617,1733711447736,-500.0,0.00030136,5]
[344666618,1733711447746,-644.68,0.00030136,5]
[344666619,1733711447755,-500.0,0.00030136,5]
[344666620,1733711447765,-500.0,0.00030136,5]
[344666621,1733711447774,-500.0,0.00030136,5]
[344666622,1733711447784,-500.0,0.00030136,5]
[344666623,1733711447793,-500.0,0.00030136,5]
[344666624,1733711447803,-500.0,0.00030136,5]
[344666625,1733711447812,-500.0,0.00030136,5]
[344666626,1733711447821,-500.0,0.00030136,5]
[344666627,1733711447831,-500.0,0.00030136,5]
[344666628,1733711447841,-548.81,0.00030136,5]
[344666629,1733711447850,-500.0,0.00030136,5]
[344666630,1733711447860,-500.0,0.00030136,5]
[344666631,1733711447870,-500.0,0.00030136,5]
[344666632,1733711447880,-598.35920159,0.00030136,5]
[344666633,1733711447890,-500.0,0.00030136,5]
[344666634,1733711447900,-500.0,0.00030136,5]
[344666635,1733711447909,-500.0,0.00030136,5]
[344666636,1733711447919,-500.0,0.00030173,5]
[344666637,1733711447929,-261.01291596,0.00030173,2]
[344666638,1733711447941,-282.55467738,0.00030173,5]
[344666639,1733711447951,-250.2826735,0.00030173,5]
[344666641,1733711447961,-501.68488827,0.00030173,5]
[344666643,1733711447972,-17258.94536964,0.000302,120]
[344666645,1733711447981,-353.752,0.000303,2]
[344666647,1733711447992,-151.0,0.000303,20]
[344666649,1733711448002,-500.0,0.00030369,9]
[344666651,1733711448011,-151.0,0.000304,10]
[344666653,1733711448021,-151.0,0.000304,13]
[344666654,1733711448030,-151.0,0.000304,16]
[344666656,1733711448040,-1017.5389488,0.00030428,2]
[344666659,1733711448050,-150.0,0.000305,2]
[344666660,1733711448061,-151.0,0.000305,18]
[344666661,1733711448071,-500.0,0.00030516,5]
[344666662,1733711448081,-183.83,0.00030518,5]
[344666663,1733711448091,-495.36189107,0.00030518,5]
[344666664,1733711448101,-500.0,0.00030518,5]
[344666665,1733711448111,-503.29432991,0.00030518,5]
[344666666,1733711448121,-500.0,0.00030518,5]
[344666667,1733711448130,-500.0,0.00030518,5]
[344666668,1733711448141,-500.0,0.00030518,120]
[344666669,1733711448151,-198.88,0.00030518,5]
[344666670,1733711448164,-500.0,0.00030518,5]
[344666671,1733711448178,-500.0,0.00030518,5]
[344666672,1733711448189,-500.0,0.00030518,5]
[344666673,1733711448198,-269.21,0.00030518,5]
[344666674,1733711448209,-500.0,0.00030518,5]
[344666675,1733711448219,-523.76,0.00030518,5]
[344666676,1733711448229,-500.0,0.00030518,5]
[344666677,1733711448238,-500.0,0.00030519,5]
[344666678,1733711448251,-523.78206341,0.00030519,5]
[344666679,1733711448358,-500.0,0.00030519,5]
[344666680,1733711448370,-329.801349,0.00030519,5]
[344666681,1733711448380,-500.0,0.00030519,5]
[344666682,1733711448390,-500.0,0.00030519,5]
[344666683,1733711448399,-500.0,0.00030519,5]
[344666684,1733711448410,-500.0,0.00030519,5]
[344666685,1733711448421,-500.0,0.00030519,5]
[344666686,1733711448430,-500.0,0.00030519,5]
[344666687,1733711448441,-570.63,0.00030519,5]
[344666688,1733711448451,-500.0,0.00030519,5]
[344666689,1733711448461,-500.0,0.00030519,5]
[344666690,1733711448472,-500.0,0.00030519,5]
[344666691,1733711448482,-500.0,0.00030519,5]
[344666692,1733711448492,-500.0,0.00030519,5]
[344666693,1733711448501,-500.0,0.00030519,5]
[344666694,1733711448511,-500.0,0.00030519,5]
[344666695,1733711448521,-500.0,0.00030519,5]
[344666696,1733711448531,-500.0,0.00030519,5]
[344666697,1733711448541,-500.0,0.00030519,5]
[344666698,1733711448551,-500.0,0.00030519,5]
[344666699,1733711448561,-500.0,0.00030519,5]
[344666700,1733711448570,-500.0,0.00030519,5]
[344666701,1733711448580,-500.0,0.00030519,5]
[344666702,1733711448590,-618.78893,0.00030519,5]
[344666703,1733711448600,-557.05,0.00030519,5]
[344666704,1733711448609,-503.43887895,0.00030519,5]
[344666705,1733711448619,-506.80664399,0.00030519,5]
[344666706,1733711448629,-513.81700055,0.00030519,5]
[344666707,1733711448639,-506.17331323,0.00030519,5]
[344666708,1733711448649,-500.0,0.00030519,5]
[344666709,1733711448659,-155.4388614,0.00030521,30]
[344666710,1733711448668,-213.45565,0.00030521,30]
[344666711,1733711448678,-213.45565,0.00030521,30]
[344666712,1733711448689,-213.45565,0.00030521,30]
[344666713,1733711448699,-213.45565,0.00030521,30]
[344666714,1733711448708,-500.0,0.00030521,5]
[344666715,1733711448718,-448.1832064,0.00030522,5]
[344666716,1733711448728,-500.0,0.00030522,5]
[344666717,1733711448737,-500.0,0.00030522,5]
[344666718,1733711448747,-500.0,0.00030522,120]
[344666719,1733711448756,-300.32123841,0.00030522,5]
[344666720,1733711448766,-237.72,0.00030522,5]
[344666721,1733711448775,-500.0,0.00030527,5]
[344666722,1733711448785,-500.0,0.00030527,5]
[344666723,1733711448795,-500.0,0.00030527,5]
[344666724,1733711448804,-251.00219314,0.00030527,5]
[344666725,1733711448814,-500.0,0.00030527,120]
[344666726,1733711448824,-500.0,0.00030527,120]
[344666727,1733711448833,-500.0,0.00030527,120]
[344666728,1733711448843,-500.0,0.00030527,120]
[344666729,1733711448853,-500.0,0.00030527,120]
[344666730,1733711448863,-500.0,0.00030527,120]
[344666731,1733711448873,-500.0,0.00030527,120]
[344666732,1733711448883,-636.63581752,0.00030527,120]
[344666733,1733711448892,-500.0,0.00030527,5]
[344666734,1733711448902,-500.0,0.00030527,5]
[344666735,1733711448911,-500.0,0.00030527,5]
[344666736,1733711448921,-500.0,0.00030527,5]
[344666737,1733711448931,-500.0,0.00030527,5]
[344666738,1733711448942,-500.0,0.00030527,5]
[344666739,1733711448951,-500.0,0.00030527,5]
[344666740,1733711448960,-500.0,0.00030527,5]
[344666741,1733711448970,-388.4266,0.00030527,5]
[344666742,1733711448979,-151.0,0.00030528,7]
[344666743,1733711448988,-151.0,0.00030528,7]
[344666744,1733711448998,-151.0,0.00030528,7]
[344666745,1733711449007,-196.757574,0.00030528,7]
[344666746,1733711449017,-194.605941,0.00030528,7]
[344666747,1733711449026,-181.550215,0.00030528,7]
[344666748,1733711449036,-151.0,0.00030528,7]
[344666749,1733711449046,-151.0,0.00030528,7]
[344666750,1733711449057,-151.0,0.00030528,7]
[344666751,1733711449067,-183.880298,0.00030528,7]
[344666752,1733711449076,-291.480769,0.00030528,7]
[344666753,1733711449085,-151.0,0.00030528,7]
[344666754,1733711449095,-151.0,0.00030528,7]
[344666755,1733711449105,-151.0,0.00030528,7]
[344666756,1733711449114,-151.0,0.00030528,7]
[344666757,1733711449124,-151.0,0.00030528,7]
[344666758,1733711449134,-151.0,0.00030528,7]
[344666759,1733711449143,-177.828807,0.00030528,7]
[344666760,1733711449154,-151.0,0.00030528,7]
[344666761,1733711449168,-151.0,0.00030528,7]
[344666762,1733711449178,-151.0,0.00030528,7]
[344666763,1733711449188,-151.0,0.00030528,7]
[344666764,1733711449202,-151.0,0.00030528,7]
[344666765,1733711449211,-151.0,0.00030528,7]
[344666766,1733711449221,-151.0,0.00030528,7]
[344666767,1733711449231,-151.0,0.00030528,7]
[344666768,1733711449243,-151.0,0.00030528,7]
[344666769,1733711449252,-151.0,0.00030528,7]
[344666770,1733711449263,-151.0,0.00030528,7]
[344666771,1733711449273,-151.0,0.00030528,7]
[344666772,1733711449282,-151.0,0.00030528,7]
[344666773,1733711449292,-151.0,0.00030528,7]
[344666774,1733711449302,-196.115923,0.00030528,7]
[344666775,1733711449312,-183.66797798,0.00030533,2]
[344666776,1733711449321,-15836.97975411,0.00030534,2]
[344666777,1733711449331,-154.847613,0.00030534,7]
[344666778,1733711449341,-2281.0,0.00030534,30]
[344666779,1733711449350,-8412.88814229,0.00030534,10]
[344666780,1733711603783,163.386541,0.00013973,2]
[344666832,1733712439133,-163.386541,0.00020807,2]
[344666833,1733712439160,-240.0,0.00027342,2]
[344666834,1733712439183,-163.386541,0.00027641,2]
[344666835,1733712439210,-138.89680265,0.00028354,2]
[344666840,1733712564115,-101.10319735,0.00028354,2]
[344666841,1733712617136,159.947236,0.00013973,2]
[344666842,1733712617413,159.947236,0.00021209,2]
[344666843,1733712617627,159.947236,0.00028445,2]
[344666865,1733712633403,-172.0689005,0.0002888,2]
[344666866,1733712633414,-302.69733596,0.00029,2]
[344666867,1733712633424,-272.64934778,0.0002929,2]
[344666868,1733712633434,-240.0,0.00029366,2]
[344666869,1733712633444,-300.0,0.00029994,2]
[344666870,1733712633455,-300.0,0.00029994,2]
[344666871,1733712633466,-86.37540561,0.00029994,2]
[344666879,1733712638934,-675.0,0.00029994,2]
[344666881,1733712638946,-19726.49999971,0.00029994,2]
[344666883,1733712638960,-31219.12459468,0.00029994,2]
[344666885,1733712638969,-204.40028989,0.00029999,2]
[344666887,1733712638979,-32403.58683517,0.0003,7]
[344666937,1733712644333,-8028.23368967,0.0003,7]
[344666940,1733712644347,-5959.07199838,0.0003,7]
[344666979,1733712647266,-19498.60406342,0.0003,7]
[344666980,1733712647278,-34050.94411893,0.0003,7]
[344666981,1733712647287,-500.0,0.00030135,7]
[344666982,1733712647301,-500.0,0.00030136,5]
[344666983,1733712647313,-500.0,0.00030136,5]
[344666984,1733712647323,-500.0,0.00030136,5]
[344666985,1733712647333,-500.0,0.00030136,5]
[344666986,1733712647342,-577.0603785,0.00030136,5]
[344666987,1733712647352,-500.0,0.00030136,5]
[344666988,1733712647362,-500.0,0.00030136,5]
[344666989,1733712647372,-500.0,0.00030136,5]
[344666990,1733712647382,-504.50751221,0.00030136,5]
[344666991,1733712647392,-505.17,0.00030136,5]
[344666992,1733712647404,-2.31799036,0.00030136,5]
[344666993,1733712647445,168.0,0.00025,2]
[344666998,1733713626164,-296.51657365,0.00028339,2]
[344666999,1733713667944,160.458192,0.00013973,2]
[344667000,1733713753204,-160.458192,0.00021209,2]
[344667001,1733713753227,-300.0,0.00028339,2]
[344667002,1733713753250,-300.0,0.00028339,2]
[344667003,1733713753271,-4269.04874562,0.00028339,2]
[344667004,1733713758098,-11100.54777401,0.00028339,2]
[344667005,1733713767428,-3485.40348037,0.00028339,2]
[344667006,1733713767461,-12732.93484876,0.00028342,2]
[344667016,1733713832316,-300.0,0.00028341,2]
[344667017,1733713832327,-300.0,0.00028341,2]
[344667019,1733713832339,-2134.44504293,0.00028342,2]
[344667020,1733713832354,-596.19665632,0.00028342,2]
[344667021,1733713832608,-4194.75659549,0.00028342,2]
[344667022,1733713832618,-160.458192,0.00028445,2]
[344667023,1733713832629,-250.0,0.00028467,2]
[344667024,1733713832639,-160.0,0.00028674,2]
[344667025,1733713832650,-249.574355,0.00028874,2]
[344667026,1733713832815,-170.3899411,0.00029089,2]
[344667027,1733713832825,-155.00594804,0.00029224,2]
[344667028,1733713832835,-225.21662159,0.00029751,2]
[344667029,1733713832852,-491.36383392,0.00029751,2]
[344667056,1733713838475,-9012.82737326,0.00029751,2]
[344667057,1733713838485,-500.0,0.00029999,7]
[344667058,1733713838495,-56295.89525566,0.000301,120]
[344667059,1733713838507,-4968.22079006,0.000301,120]
[344667062,1733713840156,-992.26965,0.000301,120]
[344667074,1733714114717,10000.0,0.0002,2]
[344667076,1733714120968,10000.0,0.0002,2]
[344667077,1733714133415,10000.0,0.0002,2]
[344667078,1733714140174,10000.0,0.0002,2]
[344667079,1733714157210,10000.0,0.0002,2]
[344667080,1733714168726,10000.0,0.0002,2]
[344667087,1733714773298,221.938832,0.00013973,2]
[344667090,1733714920522,39617.602976,0.0001999,2]
[344667095,1733714950122,-300.0,0.00019989,2]
[344667096,1733714950142,-18883.25818206,0.0001999,2]
[344667097,1733714950171,-4754.97796644,0.0001999,2]
[344667098,1733714950193,-749.47490207,0.00020243,2]
[344667099,1733714950215,-221.938832,0.00020447,2]
[344667100,1733714950238,-155.0104122,0.00021562,2]
[344667101,1733714950258,-420.0,0.00021988,2]
[344667102,1733714950284,-175.0,0.00022,2]
[344667103,1733714950306,-202.0,0.00022,2]
[344667104,1733714950327,-175.0,0.00022192,2]
[344667105,1733714950348,-175.0,0.00023014,2]
[344667106,1733714950369,-13527.35955404,0.00023568,3]
[344667107,1733714950390,-220.257184,0.00023673,2]
[344667108,1733714950412,-186.0676999,0.0002399,2]
[344667109,1733714950432,-174.021947,0.00024004,2]
[344667110,1733714950452,-249.9230717,0.00024136,2]
[344667111,1733714950472,-182.0,0.00024164,2]
[344667112,1733714950494,-587.0,0.00024187,2]
[344667113,1733714950515,-17630.0,0.00025,2]
[344667114,1733714950535,-160.0,0.00025,2]
[344667115,1733714950557,-175.0,0.00025775,2]
[344667116,1733714950579,-160.0,0.0002589,2]
[344667117,1733714950600,-24900.0,0.00026355,2]
[344667118,1733714950621,-221.938832,0.00026921,2]
[344667119,1733714950642,-175.0,0.00027386,2]
[344667120,1733714950664,-175.0,0.00027616,2]
[344667121,1733714950684,-160.0,0.00028427,2]
[344667122,1733714950705,-8560.13399498,0.00028639,2]
[344667123,1733714950735,823.0,0.00026605,2]
[344667124,1733714977690,151.54781591,0.00026339,2]
[344667167,1733715032361,-300.0,0.00028881,2]
[344667168,1733715032370,-4403.80789635,0.00028882,2]
[344667169,1733715032382,-532.9233843,0.00028882,2]
[344667201,1733715038479,-3623.40271433,0.00028882,2]
[344667203,1733715038489,-175.0,0.00028997,2]
[344667205,1733715038498,-447.619,0.00029,2]
[344667207,1733715038507,-302.72757545,0.00029,2]
[344667209,1733715038517,-11863.57077112,0.00029,2]
[344667211,1733715038526,-302.69733596,0.00029,2]
[344667213,1733715038535,-547.02340434,0.000291,2]
[344667215,1733715038545,-1230.31496612,0.00029192,2]
[344667217,1733715038554,-302.72757545,0.0002929,2]
[344667219,1733715038563,-302.69733596,0.0002929,2]
[344667221,1733715038573,-4269.08294686,0.00029297,2]
[344667776,1733715046448,-4291.05104812,0.00029297,2]
[344667778,1733715046458,-1923.5024072,0.0002936,2]
[344667780,1733715046467,-1230.31496609,0.0002937,2]
[344667782,1733715046477,-1230.31496609,0.00029548,2]
[344667785,1733715046487,-8560.133995,0.00029576,2]
[344667789,1733715046497,-302.72757545,0.0002958,2]
[344667792,1733715046507,-302.69733596,0.0002958,2]
[344667795,1733715046516,-1230.31496609,0.00029726,2]
[344667797,1733715046525,-302.72757545,0.0002987,2]
[344667799,1733715046535,-302.69733596,0.0002987,2]
[344667801,1733715046544,-156.34733073,0.00029878,2]
[344667803,1733715046554,-1230.31496609,0.00029905,2]
[344667805,1733715046564,-209.0,0.0003,2]
[344667807,1733715046573,-2641.53941429,0.0003003,2]
[344667809,1733715046582,-1230.31496609,0.00030083,2]
[344667811,1733715046591,-6757.79544809,0.0003012,120]
[344667862,1733715047086,161.0,0.00025,2]
[344668433,1733715105585,164.60523,0.00023673,2]
[344668434,1733715105808,164.60523,0.00027176,2]
[344668442,1733715620725,650.0,0.00025,120]
[344668448,1733715909768,212.440309,0.00013973,2]
[344668449,1733715940113,-212.440309,0.00020447,2]
[344668450,1733715940135,-4557.19891326,0.00024015,2]
[344668451,1733715940156,-157.0,0.00025,2]
[344668452,1733715940178,-238.333305,0.0002668,2]
[344668453,1733715940201,-212.440309,0.00026921,2]
[344668454,1733715940223,-300.0,0.00027455,2]
[344668455,1733715940245,-300.0,0.00027455,2]
[344668456,1733715940266,-1973.1410032,0.00027456,2]
[344668457,1733715940287,-171.8540648,0.0002807,2]
[344668458,1733715940310,-186.2575568,0.00028315,2]
[344668459,1733715940332,-24900.0,0.00028432,2]
[344668460,1733715940353,-307.57874154,0.00028451,2]
[344668461,1733715940373,-177.5765484,0.00028551,2]
[344668462,1733715940395,-445.385,0.0002863,2]
[344668463,1733715940416,-307.57874152,0.00028734,2]
[344668464,1733715940436,-307.57874152,0.00029018,2]
[344668465,1733715940456,-307.57874152,0.00029301,2]
[344668466,1733715940476,-307.57874152,0.00029584,2]
[344668467,1733715940497,-420.0,0.00029668,2]
[344668468,1733715940519,-314.0,0.0003,2]
[344668469,1733715940541,-2617.38849313,0.0003002,2]